bitfinex/quotes_BTCUSD_20240701
["timestamp","ask_amount","ask_price","bid_price","bid_amount"]
[1719803476300,1.40638988,63544.0,63543.0,0.08222746]
[1719803477960,1.47958988,63544.0,63543.0,0.08222746]
[1719803483143,1.47306823,63544.0,63543.0,0.08222746]
[1719803483339,1.44565805,63544.0,63543.0,0.28872746]
[1719803483545,1.43913598,63544.0,63543.0,0.28872746]
[1719803483902,1.36593598,63544.0,63543.0,0.30872746]
[1719803484325,1.40639683,63544.0,63543.0,0.30872746]
[1719803484499,1.39987433,63544.0,63543.0,0.28872746]
[1719803484701,1.40639678,63544.0,63543.0,0.28872746]
[1719803484901,1.40639678,63544.0,63543.0,0.30872746]
[1719803485125,1.40639678,63544.0,63543.0,0.28872746]
[1719803485368,1.40639678,63544.0,63543.0,0.30872746]
[1719803485571,1.40639678,63544.0,63543.0,0.28872746]
[1719803486357,1.40639662,63544.0,63543.0,0.28872746]
[1719803489435,1.39987433,63544.0,63543.0,0.28872746]
[1719803489637,1.40639671,63544.0,63543.0,0.28872746]
[1719803489861,1.39987433,63544.0,63543.0,0.28872746]
[1719803490056,1.40639671,63544.0,63543.0,0.28872746]
[1719803491670,1.40639671,63544.0,63543.0,0.207424]
[1719803492232,1.47959671,63544.0,63543.0,0.207424]
[1719803492456,1.47307433,63544.0,63543.0,0.207424]
[1719803492662,1.48611865,63544.0,63543.0,0.000924]
[1719803492871,1.47959649,63544.0,63543.0,0.000924]
[1719803494563,1.40639649,63544.0,63543.0,0.000924]
[1719803497612,1.47698839,63544.0,63543.0,0.000924]
[1719803498311,1.40639649,63544.0,63543.0,0.000924]
[1719803498513,1.47698839,63544.0,63543.0,0.000924]
[1719803498892,1.40639649,63544.0,63543.0,0.000924]
[1719803499101,1.47699732,63544.0,63543.0,0.000924]
[1719803499475,1.40639649,63544.0,63543.0,0.000924]
[1719803499881,1.47959649,63544.0,63543.0,0.000924]
[1719803500259,1.57373093,63544.0,63543.0,0.000924]
[1719803501290,1.59726454,63544.0,63543.0,0.000924]
[1719803501494,1.47959649,63544.0,63543.0,0.000924]
[1719803501694,1.59731252,63544.0,63543.0,0.000924]
[1719803502097,1.59731116,63544.0,63543.0,0.000924]
[1719803502360,1.47959449,63544.0,63543.0,0.000924]
[1719803502613,1.47959448,63544.0,63543.0,0.000924]
[1719803504801,1.47959448,63544.0,63543.0,0.08222746]
[1719803505214,1.47307433,63544.0,63543.0,0.08222746]
[1719803505500,1.40639438,63544.0,63543.0,0.08222746]
[1719803508194,1.39987433,63544.0,63543.0,0.08222746]
[1719803508421,1.40639259,63544.0,63543.0,0.08222746]
[1719803511386,1.39987433,63544.0,63543.0,0.08222746]
[1719803511542,1.4063923,63544.0,63543.0,0.08222746]
[1719803514578,1.40639313,63544.0,63543.0,0.08222746]
[1719803515129,1.40639309,63544.0,63543.0,0.08222746]
[1719803515555,1.52421837,63544.0,63543.0,0.08222746]
[1719803516157,1.40639309,63544.0,63543.0,0.08222746]
[1719803516596,1.81580509,63544.0,63543.0,0.000924]
[1719803516797,0.47218,63535.0,63534.0,0.15119007]
[1719803517099,0.47218,63535.0,63533.0,0.75102746]
[1719803517100,0.78698,63534.0,63533.0,0.198124]
[1719803517298,0.92743711,63534.0,63533.0,0.198124]
[1719803517660,1.52234665,63534.0,63533.0,0.000924]
[1719803517883,1.49923742,63534.0,63533.0,0.000924]
[1719803518282,1.49923742,63534.0,63526.0,0.15119007]
[1719803518283,0.787065,63527.0,63526.0,0.15119007]
[1719803518483,1.07134986,63527.0,63526.0,0.15119007]
[1719803518685,1.00072144,63527.0,63526.0,0.15119007]
[1719803518871,0.787077,63526.0,63525.0,0.32019353]
[1719803519066,0.787077,63526.0,63525.0,0.16900346]
[1719803519067,1.24236444,63526.0,63525.0,0.16900346]
[1719803519267,1.24236444,63526.0,63525.0,0.08130346]
[1719803519469,1.33648629,63526.0,63525.0,0.08130346]
[1719803520087,1.24236444,63526.0,63525.0,0.08130346]
[1719803520311,1.24336444,63526.0,63525.0,0.08130346]
[1719803520559,1.23684635,63526.0,63525.0,0.08130346]
[1719803520697,1.33748185,63526.0,63525.0,0.08130346]
[1719803521083,1.40570239,63526.0,63525.0,0.08130346]
[1719803521940,1.49977874,63526.0,63525.0,0.08130346]
[1719803522315,1.40570239,63526.0,63525.0,0.08130346]
[1719803522954,1.101961,63523.0,63522.0,0.15119007]
[1719803523150,1.30909935,63523.0,63522.0,0.15119007]
[1719803523346,1.101978,63522.0,63521.0,0.15119007]
[1719803523502,1.30911635,63522.0,63521.0,0.15119007]
[1719803524303,0.787152,63520.0,63519.0,0.15211407]
[1719803524510,0.887152,63520.0,63519.0,0.15211407]
[1719803524732,0.92109035,63520.0,63519.0,0.15211407]
[1719803524935,0.887152,63520.0,63519.0,0.15211407]
[1719803526865,0.890152,63520.0,63519.0,0.15211407]
[1719803527049,0.893152,63520.0,63519.0,0.15211407]
[1719803527267,0.893152,63520.0,63519.0,0.17211407]
[1719803527593,0.893152,63520.0,63519.0,0.37531407]
[1719803529847,0.893152,63520.0,63519.0,0.35531407]
[1719803530282,0.893152,63520.0,63519.0,0.37531407]
[1719803530501,0.006,63520.0,63519.0,0.81380707]
[1719803530711,0.006,63520.0,63519.0,0.65637407]
[1719803531331,0.003,63520.0,63519.0,0.65637407]
[1719803531479,0.006,63520.0,63519.0,0.65637407]
[1719803532293,0.003,63520.0,63519.0,0.58317407]
[1719803532852,0.003,63520.0,63519.0,0.56317407]
[1719803533056,0.157429,63521.0,63520.0,0.02]
[1719803533304,0.257429,63521.0,63520.0,0.17119007]
[1719803533657,0.887141,63521.0,63520.0,0.15119007]
[1719803534373,0.888141,63521.0,63520.0,0.15719007]
[1719803536227,0.888141,63521.0,63520.0,0.16319007]
[1719803536228,1.203997,63521.0,63520.0,0.16319007]
[1719803536683,1.203997,63521.0,63520.0,0.16411407]
[1719803537218,1.202997,63521.0,63520.0,0.15811407]
[1719803537696,1.280197,63521.0,63520.0,0.15211407]
[1719803537907,1.284197,63521.0,63520.0,0.15211407]
[1719803539302,1.284197,63521.0,63520.0,0.000924]
[1719803539592,1.284197,63521.0,63520.0,0.15211407]
[1719803541089,1.24469815,63521.0,63520.0,0.15211407]
[1719803542318,1.24469815,63521.0,63520.0,0.000924]
[1719803544713,1.196683,63520.0,63519.0,0.008784]
[1719803544927,1.41597714,63520.0,63519.0,0.008784]
[1719803545159,1.51597714,63520.0,63519.0,0.008784]
[1719803545423,1.49297714,63520.0,63519.0,0.008784]
[1719803546624,1.49897714,63520.0,63519.0,0.008784]
[1719803547780,1.49597714,63520.0,63519.0,0.008784]
[1719803548229,1.50697714,63520.0,63519.0,0.009784]
[1719803548435,1.50397714,63520.0,63519.0,0.009784]
[1719803548763,1.51497714,63520.0,63519.0,0.010784]
[1719803550575,1.58817714,63520.0,63519.0,0.010784]
[1719803551132,1.58817714,63520.0,63519.0,0.121184]
[1719803555063,1.10544614,63520.0,63519.0,0.121184]
[1719803555302,0.62824616,63520.0,63519.0,0.212584]
[1719803557386,0.94310716,63520.0,63519.0,0.212584]
[1719803557985,1.10544614,63520.0,63519.0,0.010784]
[1719803562456,1.17596081,63520.0,63519.0,0.010784]
[1719803563211,1.10544614,63520.0,63519.0,0.010784]
[1719803563413,1.1994657,63520.0,63519.0,0.010784]
[1719803564251,1.10544614,63520.0,63519.0,0.010784]
[1719803564486,1.19954641,63520.0,63519.0,0.010784]
[1719803564645,1.10544614,63520.0,63519.0,0.010784]
[1719803566502,1.19954767,63520.0,63519.0,0.010784]
[1719803566827,1.10544614,63520.0,63519.0,0.010784]
[1719803567534,1.19953552,63520.0,63519.0,0.010784]
[1719803567740,1.10544614,63520.0,63519.0,0.010784]
[1719803568312,1.19953552,63520.0,63519.0,0.010784]
[1719803569481,1.10628614,63520.0,63519.0,0.010784]
[1719803570333,0.77628614,63520.0,63519.0,0.010784]
[1719803570673,1.16170719,63520.0,63519.0,0.010784]
[1719803570825,1.09114714,63520.0,63519.0,0.010784]
[1719803571457,0.77628614,63520.0,63519.0,0.010784]
[1719803572128,1.09114714,63520.0,63519.0,0.010784]
[1719803572543,0.77628614,63520.0,63519.0,0.010784]
[1719803572786,0.8468484,63520.0,63519.0,0.010784]
[1719803573588,0.77628614,63520.0,63519.0,0.010784]
[1719803574234,0.84684859,63520.0,63519.0,0.010784]
[1719803574607,0.77628614,63520.0,63519.0,0.010784]
[1719803574835,0.77628614,63520.0,63519.0,0.128784]
[1719803575031,0.77628614,63520.0,63519.0,0.108784]
[1719803575232,0.77628614,63520.0,63519.0,0.128784]
[1719803575431,0.84684778,63520.0,63519.0,0.128784]
[1719803575943,1.16170878,63520.0,63519.0,0.108784]
[1719803576393,0.84684778,63520.0,63519.0,0.108784]
[1719803577117,1.16170878,63520.0,63519.0,0.108784]
[1719803577322,1.18529696,63520.0,63519.0,0.108784]
[1719803577525,1.18529696,63520.0,63519.0,0.010784]
[1719803578622,1.09114714,63520.0,63519.0,0.010784]
[1719803580253,1.20892951,63520.0,63519.0,0.010784]
[1719803581905,0.89406851,63520.0,63519.0,0.010784]
[1719803582109,0.77628614,63520.0,63519.0,0.010784]
[1719803582324,0.15679516,63520.0,63519.0,0.030784]
[1719803582529,0.05679516,63520.0,63519.0,1.03997307]
[1719803582798,0.05679516,63520.0,63519.0,1.11317307]
[1719803583030,0.02284,63520.0,63519.0,1.11317307]
[1719803583565,0.02284,63520.0,63519.0,1.74290507]
[1719803583978,0.01184,63520.0,63519.0,1.74190507]
[1719803584186,0.00084,63520.0,63519.0,1.74090507]
[1719803584397,0.01184,63520.0,63519.0,1.74190507]
[1719803584599,0.02284,63520.0,63519.0,1.74290507]
[1719803584809,0.00084,63520.0,63519.0,1.74090507]
[1719803585055,0.00184,63520.0,63519.0,1.75390507]
[1719803585296,0.00284,63520.0,63519.0,1.75990507]
[1719803586483,0.00284,63520.0,63519.0,1.74990507]
[1719803586690,0.00284,63520.0,63519.0,1.75990507]
[1719803586894,0.00284,63520.0,63519.0,1.74990507]
[1719803587113,0.00284,63520.0,63519.0,1.75990507]
[1719803587311,0.00284,63520.0,63519.0,1.74990507]
[1719803587934,0.00284,63520.0,63519.0,1.43503907]
[1719803588256,0.00284,63520.0,63519.0,1.44503907]
[1719803588676,0.00284,63520.0,63519.0,1.37183907]
[1719803588902,0.00284,63520.0,63519.0,1.44503907]
[1719803595640,0.00284,63520.0,63519.0,1.12017307]
[1719803595851,0.00284,63520.0,63519.0,0.37467407]
[1719803596907,0.00084,63520.0,63519.0,0.35567407]
[1719803597053,0.00484,63520.0,63519.0,0.35567407]
[1719803597247,0.00784,63520.0,63519.0,0.35567407]
[1719803597450,0.00084,63520.0,63519.0,0.35567407]
[1719803597873,0.00784,63520.0,63519.0,0.35567407]
[1719803598673,0.00484,63520.0,63519.0,0.35567407]
[1719803599960,0.00084,63520.0,63519.0,0.35567407]
[1719803600160,0.00784,63520.0,63519.0,0.35567407]
[1719803600398,0.00484,63520.0,63519.0,0.35567407]
[1719803600601,0.00084,63520.0,63519.0,0.15997407]
[1719803600802,1.030492,63520.0,63519.0,0.008784]
[1719803601027,1.61169198,63520.0,63519.0,0.008784]
[1719803601555,1.65220162,63520.0,63519.0,0.008784]
[1719803601757,1.64567601,63520.0,63519.0,0.008784]
[1719803601938,1.6522016,63520.0,63519.0,0.008784]
[1719803602306,1.6029016,63520.0,63519.0,0.008784]
[1719803604405,1.6029014,63520.0,63519.0,0.008784]
[1719803605669,1.67346066,63520.0,63519.0,0.008784]
[1719803606902,1.6029014,63520.0,63519.0,0.008784]
[1719803610751,1.60289922,63520.0,63519.0,0.008784]
[1719803610945,0.62063824,63520.0,63519.0,0.008784]
[1719803611183,5.31411503,63520.0,63519.0,0.193984]
[1719803611433,5.280131,63520.0,63519.0,0.193984]
[1719803611580,4.80784,63520.0,63519.0,0.193984]
[1719803612573,4.80384,63520.0,63519.0,0.34517407]
[1719803612952,4.80484,63520.0,63519.0,0.34517407]
[1719803613395,4.80084,63520.0,63519.0,0.35617407]
[1719803613714,4.80084,63520.0,63519.0,0.35517407]
[1719803613951,4.80084,63520.0,63519.0,0.35617407]
[1719803614897,4.80084,63520.0,63519.0,0.34617407]
[1719803615547,4.80084,63520.0,63519.0,0.35617407]
[1719803615758,4.80084,63520.0,63519.0,0.51360707]
[1719803616364,4.80084,63520.0,63519.0,0.82847307]
[1719803618976,4.70084,63520.0,63519.0,0.82847307]
[1719803619907,4.70084,63520.0,63519.0,1.14333907]
[1719803622053,4.70084,63520.0,63519.0,1.21653907]
[1719803623958,4.70084,63520.0,63519.0,1.20653907]
[1719803624161,4.70084,63520.0,63519.0,1.13333907]
[1719803626775,4.70084,63520.0,63519.0,0.50360707]
[1719803629353,4.70084,63520.0,63519.0,0.18097407]
[1719803629552,4.70084,63520.0,63519.0,0.16097407]
[1719803629738,4.70084,63520.0,63519.0,0.18097407]
[1719803632245,5.487992,63520.0,63519.0,0.16097407]
[1719803632450,5.529092,63520.0,63519.0,0.16097407]
[1719803633098,5.529092,63520.0,63509.0,0.357457]
[1719803633099,0.2,63496.0,63495.0,0.04717892]
[1719803633311,0.2,63496.0,63494.0,0.08003038]
[1719803633312,0.692477,63495.0,63494.0,0.009262]
[1719803633526,0.692477,63495.0,63482.0,0.16045207]
[1719803633527,0.157522,63483.0,63482.0,0.16045207]
[1719803633735,0.23124132,63495.0,63494.0,0.15119007]
[1719803633736,0.257492,63495.0,63494.0,0.15119007]
[1719803634007,0.29147826,63495.0,63494.0,0.15119007]
[1719803634226,0.68354374,63495.0,63494.0,0.15119007]
[1719803634421,0.61298472,63495.0,63494.0,0.15119007]
[1719803634627,0.62598472,63495.0,63494.0,0.15219007]
[1719803634839,0.62598472,63495.0,63494.0,0.15119007]
[1719803634840,0.61298472,63495.0,63494.0,0.15119007]
[1719803635047,0.157496,63494.0,63493.0,0.15119007]
[1719803635197,0.29800377,63494.0,63493.0,0.15119007]
[1719803635398,0.29148226,63494.0,63493.0,0.15119007]
[1719803635603,0.257496,63494.0,63493.0,0.15119007]
[1719803635778,0.007,63495.0,63494.0,0.15119007]
[1719803635983,0.007,63495.0,63494.0,0.30868507]
[1719803636361,0.014,63496.0,63494.0,0.30868507]
[1719803636600,0.007,63495.0,63494.0,0.15219007]
[1719803637010,0.007,63495.0,63494.0,0.32868507]
[1719803637483,0.007,63495.0,63494.0,0.17119007]
[1719803637484,0.008,63495.0,63494.0,0.17119007]
[1719803637901,0.1,63502.0,63495.0,0.02]
[1719803638085,0.1,63502.0,63500.0,0.15119007]
[1719803639064,0.257475,63502.0,63500.0,0.15119007]
[1719803639474,0.1,63502.0,63501.0,0.15119007]
[1719803639682,4.70084,63520.0,63508.0,0.15119007]
[1719803639884,0.157453,63511.0,63509.0,0.0031488]
[1719803640086,0.157455,63510.0,63508.0,0.15119007]
[1719803640503,0.314867,63519.0,63512.0,0.15119007]
[1719803640703,0.157446,63514.0,63512.0,0.15119007]
[1719803641372,0.157448,63513.0,63512.0,0.15119007]
[1719803641969,0.257448,63513.0,63512.0,0.15219007]
[1719803642385,0.1,63513.0,63512.0,0.15219007]
[1719803642785,0.08796939,63513.0,63512.0,0.15219007]
[1719803643253,0.09296939,63513.0,63512.0,0.15219007]
[1719803643695,0.09396939,63513.0,63512.0,0.15219007]
[1719803643930,0.09396939,63513.0,63512.0,0.15119007]
[1719803644184,0.09896939,63513.0,63512.0,0.15219007]
[1719803644409,0.10396939,63513.0,63512.0,0.15219007]
[1719803645297,0.25041739,63513.0,63512.0,0.15219007]
[1719803645508,0.24541739,63513.0,63512.0,0.15119007]
[1719803645877,0.24941739,63513.0,63512.0,0.15119007]
[1719803646160,0.24541739,63513.0,63512.0,0.15119007]
[1719803646564,0.25241739,63513.0,63512.0,0.15219007]
[1719803646846,0.25041739,63513.0,63512.0,0.15219007]
[1719803646963,0.24541739,63513.0,63512.0,0.15119007]
[1719803647161,0.24841739,63513.0,63512.0,0.15119007]
[1719803647418,0.24941739,63513.0,63512.0,0.15119007]
[1719803647854,0.25241739,63513.0,63512.0,0.15119007]
[1719803648524,0.25441739,63513.0,63512.0,0.15119007]
[1719803648688,0.25041739,63513.0,63512.0,0.15119007]
[1719803648887,0.25341739,63513.0,63512.0,0.15119007]
[1719803650341,0.56831339,63513.0,63512.0,0.15119007]
[1719803651151,0.25341739,63513.0,63512.0,0.15119007]
[1719803651365,0.56831339,63513.0,63512.0,0.15119007]
[1719803652148,0.25341739,63513.0,63512.0,0.15119007]
[1719803652497,0.56831339,63513.0,63512.0,0.15119007]
[1719803655359,0.25341739,63513.0,63512.0,0.15119007]
[1719803655576,0.09596939,63513.0,63512.0,0.15119007]
[1719803655784,0.09596939,63513.0,63512.0,0.30709007]
[1719803655996,0.008,63513.0,63512.0,0.30709007]
[1719803656549,0.005,63513.0,63512.0,0.30709007]
[1719803657176,0.1,63515.0,63514.0,0.02]
[1719803657579,0.157443,63515.0,63512.0,0.28709007]
[1719803657773,0.157443,63515.0,63514.0,0.15119007]
[1719803658004,0.257443,63515.0,63514.0,0.15119007]
[1719803658406,0.887215,63515.0,63514.0,0.15119007]
[1719803658776,0.472336,63514.0,63513.0,0.15119007]
[1719803658975,0.572336,63514.0,63513.0,0.15119007]
[1719803660017,0.575336,63514.0,63513.0,0.15119007]
[1719803660916,0.577336,63514.0,63513.0,0.15119007]
[1719803662522,0.892227,63514.0,63513.0,0.15119007]
[1719803666443,0.892227,63514.0,63513.0,0.15211407]
[1719803666732,0.893067,63514.0,63513.0,0.15211407]
[1719803669397,0.89959097,63514.0,63513.0,0.15211407]
[1719803670648,0.58469997,63514.0,63513.0,0.15211407]
[1719803670821,0.578176,63514.0,63513.0,0.15211407]
[1719803671171,0.57754923,63514.0,63513.0,0.15211407]
[1719803671827,0.61805839,63514.0,63513.0,0.15211407]
[1719803673447,0.30316739,63514.0,63513.0,0.15211407]
[1719803673645,0.13982516,63514.0,63513.0,0.15211407]
[1719803673844,0.03982516,63514.0,63513.0,0.15211407]
[1719803674186,0.03982516,63514.0,63513.0,0.7968976]
[1719803674451,0.00584,63514.0,63513.0,0.95119705]
[1719803676678,0.00584,63514.0,63513.0,0.61630105]
[1719803676826,0.00384,63514.0,63513.0,0.61630105]
[1719803677169,0.00484,63514.0,63513.0,0.61630105]
[1719803677368,0.00084,63514.0,63513.0,0.61630105]
[1719803677901,0.00284,63514.0,63513.0,0.61730105]
[1719803678335,0.00084,63514.0,63513.0,0.61730105]
[1719803680024,0.00084,63514.0,63513.0,0.45885305]
[1719803680353,0.00084,63514.0,63513.0,0.45985305]
[1719803681537,0.00084,63514.0,63513.0,0.45885305]
[1719803681755,0.00184,63514.0,63513.0,0.45885305]
[1719803682324,0.159285,63514.0,63513.0,0.29651407]
[1719803683375,0.161285,63514.0,63513.0,0.29651407]
[1719803683706,0.160285,63514.0,63513.0,0.29651407]
[1719803683912,0.789067,63514.0,63513.0,0.15211407]
[1719803684083,0.82505759,63514.0,63513.0,0.15211407]
[1719803684335,0.82405759,63514.0,63513.0,0.15211407]
[1719803684737,0.82505759,63514.0,63513.0,0.15211407]
[1719803701169,1.21324859,63514.0,63513.0,0.000924]
[1719803701379,1.77238509,63514.0,63513.0,0.000924]
[1719803701548,1.77238509,63514.0,63502.0,0.4716]
[1719803701549,0.787362,63503.0,63502.0,0.4716]
[1719803701742,0.472447,63499.0,63498.0,0.15119007]
[1719803701965,1.30966759,63499.0,63498.0,0.15119007]
[1719803702206,0.472455,63498.0,63497.0,0.15119007]
[1719803702418,0.89850854,63498.0,63497.0,0.15119007]
[1719803702586,0.82141559,63498.0,63497.0,0.15119007]
[1719803702803,0.1733,63499.0,63497.0,0.15119007]
[1719803702804,0.1,63499.0,63497.0,0.15119007]
[1719803702962,0.257482,63499.0,63498.0,0.15119007]
[1719803703148,0.157482,63499.0,63498.0,0.15119007]
[1719803703362,0.572447,63499.0,63498.0,0.15119007]
[1719803703969,0.583447,63499.0,63498.0,0.15119007]
[1719803704544,0.017,63499.0,63498.0,0.47762905]
[1719803704771,0.017,63499.0,63498.0,0.63411405]
[1719803704772,0.006,63499.0,63498.0,0.63411405]
[1719803704953,0.006,63499.0,63498.0,0.94908405]
[1719803705507,0.006,63499.0,63498.0,1.14908405]
[1719803705712,0.012,63499.0,63498.0,0.63411405]
[1719803706336,0.009,63499.0,63498.0,0.63411405]
[1719803706533,0.157465,63506.0,63505.0,0.1677]
[1719803706757,0.1,63507.0,63506.0,0.02]
[1719803706758,0.257463,63507.0,63506.0,0.02]
[1719803707028,0.12140503,63507.0,63506.0,0.17119007]
[1719803708067,0.02140503,63507.0,63506.0,0.17119007]
[1719803708282,0.03240503,63507.0,63506.0,0.17219007]
[1719803708436,0.011,63507.0,63506.0,0.17219007]
[1719803709451,0.011,63507.0,63506.0,0.33280397]
[1719803709762,0.158287,63514.0,63513.0,0.17119007]
[1719803709857,0.158287,63514.0,63513.0,0.15119007]
[1719803710096,0.258287,63514.0,63513.0,0.15119007]
[1719803710839,0.10084,63514.0,63513.0,0.17119007]
[1719803711087,0.01384,63514.0,63513.0,0.46793807]
[1719803711330,0.01384,63514.0,63513.0,0.94417305]
[1719803712271,0.01384,63514.0,63513.0,0.94517305]
[1719803712272,0.02684,63514.0,63513.0,0.94517305]
[1719803712537,0.03984,63514.0,63513.0,0.94517305]
[1719803712775,0.03984,63514.0,63513.0,0.61027705]
[1719803713073,0.02684,63514.0,63513.0,0.61027705]
[1719803713238,0.02684,63514.0,63513.0,0.61127705]
[1719803713441,0.02684,63514.0,63513.0,0.63127705]
[1719803713610,0.00084,63514.0,63513.0,0.62927705]
[1719803713852,0.00084,63514.0,63513.0,0.94417305]
[1719803714057,0.00484,63514.0,63513.0,0.94417305]
[1719803714683,0.00484,63514.0,63513.0,0.94617305]
[1719803714942,0.00484,63514.0,63513.0,0.94417305]
[1719803715158,0.00484,63514.0,63513.0,1.25906905]
[1719803715364,0.00084,63514.0,63513.0,1.26006905]
[1719803715786,0.00384,63514.0,63513.0,1.26006905]
[1719803716296,0.00084,63514.0,63513.0,1.26006905]
[1719803716502,0.00084,63514.0,63513.0,1.25906905]
[1719803716503,0.00184,63514.0,63513.0,1.25906905]
[1719803717380,0.00484,63514.0,63513.0,1.25906905]
[1719803717762,0.00384,63514.0,63513.0,1.25906905]
[1719803718164,0.00384,63514.0,63513.0,0.94417305]
[1719803718573,0.00384,63514.0,63513.0,0.92417305]
[1719803718836,0.00384,63514.0,63513.0,0.94417305]
[1719803719075,0.00084,63514.0,63513.0,0.94417305]
[1719803720018,0.00184,63514.0,63513.0,0.94417305]
[1719803720435,0.00084,63514.0,63513.0,0.94417305]
[1719803720633,0.00184,63514.0,63513.0,0.94417305]
[1719803720841,0.00484,63514.0,63513.0,0.94417305]
[1719803721041,1.92372,63520.0,63519.0,0.15119007]
[1719803721684,1.94538895,63520.0,63519.0,0.15119007]
[1719803723899,1.95538895,63520.0,63519.0,0.15119007]
[1719803724083,1.95538895,63520.0,63519.0,0.15219007]
[1719803724084,2.21581895,63520.0,63519.0,0.15219007]
[1719803724321,2.21281895,63520.0,63519.0,0.15119007]
[1719803724724,2.21481895,63520.0,63519.0,0.15219007]
[1719803724835,2.21281895,63520.0,63519.0,0.15119007]
[1719803725276,2.52967995,63520.0,63519.0,0.15219007]
[1719803725498,2.51967995,63520.0,63519.0,0.15119007]
[1719803725698,2.52867995,63520.0,63519.0,0.15219007]
[1719803725896,2.53067995,63520.0,63519.0,0.15319007]
[1719803726298,2.52167995,63520.0,63519.0,0.15219007]
[1719803726499,2.53167995,63520.0,63519.0,0.15319007]
[1719803727123,2.51767995,63520.0,63519.0,0.15119007]
[1719803727326,2.52667995,63520.0,63519.0,0.15219007]
[1719803727657,2.52967995,63520.0,63519.0,0.15219007]
[1719803728059,2.52967995,63520.0,63519.0,0.15319007]
[1719803728060,2.53267995,63520.0,63519.0,0.15319007]
[1719803728868,2.52667995,63520.0,63519.0,0.15219007]
[1719803729246,2.52967995,63520.0,63519.0,0.15219007]
[1719803729448,2.52067995,63520.0,63519.0,0.15119007]
[1719803729859,2.52867995,63520.0,63519.0,0.15219007]
[1719803730257,3.15840195,63520.0,63519.0,0.15219007]
[1719803730423,3.1923355,63520.0,63519.0,0.15311407]
[1719803730842,3.1931755,63520.0,63519.0,0.15311407]
[1719803731387,3.1901755,63520.0,63519.0,0.15311407]
[1719803731807,3.1851755,63520.0,63519.0,0.15211407]
[1719803731960,3.19169162,63520.0,63519.0,0.15211407]
[1719803732162,3.19969162,63520.0,63519.0,0.15311407]
[1719803735781,2.88483062,63520.0,63519.0,0.15311407]
[1719803735991,2.85089707,63520.0,63519.0,0.15311407]
[1719803736312,2.85089737,63520.0,63519.0,0.15311407]
[1719803736928,2.56997433,63520.0,63519.0,0.15311407]
[1719803737104,2.05722895,63520.0,63519.0,0.15311407]
[1719803737310,2.05722895,63520.0,63519.0,0.47184707]
[1719803737714,2.05722895,63520.0,63519.0,0.31441407]
[1719803739401,2.09116312,63520.0,63519.0,0.47184707]
[1719803741976,2.05722895,63520.0,63519.0,0.47184707]
[1719803742197,1.93556,63520.0,63519.0,1.03418605]
[1719803742429,1.93556,63520.0,63519.0,2.16198405]
[1719803742859,1.93556,63520.0,63519.0,2.29279966]
[1719803743099,1.63576,63520.0,63519.0,2.80766566]
[1719803743311,1.63576,63520.0,63519.0,3.00766566]
[1719803743712,1.63276,63520.0,63519.0,3.47996566]
[1719803743945,1.62476,63520.0,63519.0,3.47896566]
[1719803744189,1.62476,63520.0,63519.0,3.48296566]
[1719803744411,1.62476,63520.0,63519.0,3.48596566]
[1719803744636,1.62476,63520.0,63519.0,3.48196566]
[1719803744876,1.62476,63520.0,63519.0,3.48296566]
[1719803745070,1.62676,63520.0,63519.0,3.47996566]
[1719803745271,1.62676,63520.0,63519.0,3.47896566]
[1719803745272,1.62476,63520.0,63519.0,3.47896566]
[1719803745442,1.62576,63520.0,63519.0,3.48696566]
[1719803745639,1.62576,63520.0,63519.0,3.50096566]
[1719803748398,1.62576,63520.0,63519.0,3.50094677]
[1719803749661,1.62576,63520.0,63519.0,3.52394677]
[1719803750223,1.62576,63520.0,63519.0,3.34074677]
[1719803750442,1.62576,63520.0,63519.0,3.52394677]
[1719803750629,1.62576,63520.0,63519.0,3.50094677]
[1719803751655,1.62576,63520.0,63519.0,3.50095026]
[1719803751773,1.62576,63520.0,63519.0,2.67208405]
[1719803752954,1.62576,63520.0,63519.0,2.47208405]
[1719803753402,1.62576,63520.0,63519.0,2.19382005]
[1719803753600,1.62576,63520.0,63519.0,1.87895405]
[1719803753930,1.62576,63520.0,63519.0,1.81591805]
[1719803754555,1.62576,63520.0,63519.0,1.79391805]
[1719803754556,1.62476,63520.0,63519.0,1.79391805]
[1719803754758,1.62476,63520.0,63519.0,1.80791805]
[1719803754959,1.62576,63520.0,63519.0,1.81591805]
[1719803755158,1.62576,63520.0,63519.0,1.80191805]
[1719803755455,1.62476,63520.0,63519.0,1.80791805]
[1719803755663,1.62576,63520.0,63519.0,1.81591805]
[1719803756157,1.62576,63520.0,63519.0,0.84641407]
[1719803756385,1.76846,63520.0,63519.0,0.64641407]
[1719803756590,1.76846,63520.0,63519.0,0.82384707]
[1719803756591,1.62576,63520.0,63519.0,0.82384707]
[1719803757025,1.62576,63520.0,63519.0,0.89704707]
[1719803757237,1.62576,63520.0,63519.0,0.88304707]
[1719803757577,1.62576,63520.0,63519.0,0.89404707]
[1719803757797,1.62476,63520.0,63519.0,1.64257907]
[1719803757995,1.62476,63520.0,63519.0,1.80491805]
[1719803758355,1.62576,63520.0,63519.0,1.61191805]
[1719803759283,1.62576,63520.0,63519.0,1.81191805]
[1719803759489,1.62576,63520.0,63519.0,1.13471307]
[1719803759681,1.62576,63520.0,63519.0,0.81984707]
[1719803759883,1.62576,63520.0,63519.0,1.13471307]
[1719803761438,1.62576,63520.0,63519.0,0.64241407]
[1719803762057,1.76456,63520.0,63519.0,0.64241407]
[1719803762922,1.76356,63520.0,63519.0,0.63541407]
[1719803763326,1.76356,63520.0,63519.0,0.62441407]
[1719803764097,1.76356,63520.0,63519.0,0.62541407]
[1719803764288,1.77856,63520.0,63519.0,0.62641407]
[1719803764493,1.77856,63520.0,63519.0,0.62541407]
[1719803764494,1.77456,63520.0,63519.0,0.62541407]
[1719803764691,1.76356,63520.0,63519.0,0.62541407]
[1719803765066,1.92499,63520.0,63519.0,0.62541407]
[1719803765191,1.93499,63520.0,63519.0,0.62641407]
[1719803765395,2.664712,63520.0,63519.0,0.62641407]
[1719803766540,2.664712,63520.0,63519.0,0.62541407]
[1719803766763,2.660712,63520.0,63519.0,0.62541407]
[1719803766934,2.664712,63520.0,63519.0,0.62641407]
[1719803767138,2.654712,63520.0,63519.0,0.62541407]
[1719803767363,2.650712,63520.0,63519.0,0.62441407]
[1719803767567,1.73876,63520.0,63519.0,0.62641407]
[1719803767890,1.73876,63520.0,63519.0,0.62541407]
[1719803767891,1.73476,63520.0,63519.0,0.62541407]
[1719803768092,1.88219,63520.0,63519.0,0.62441407]